[Event "CCT Julius Baer-D3 2024"]
[Site "Online"]
[Date "2024.09.27"]
[Round "1.2"]
[White "Chopper"]
[Black "Rud_Makarian"]
[Result "1/2-1/2"]
[ECO "D24"]
[WhiteElo "2612"]
[BlackElo "2616"]
[Annotator "ChessBase"]
[PlyCount "130"]
[EventDate "2024.09.25"]
[EventType "swiss"]
[EventCountry "NET"]
[SourceTitle "playchess.com"]
[Source "ChessBase"]
[SourceQuality "1"]
[TimeControl "600+2"]

1. d4 {[%emt 0:00:03]} Nf6 {[%emt 0:00:03]} 2. c4 {[%emt 0:00:01]} e6 {[%emt 0:00:01]} 3. Nf3 {[%emt 0:00:00]} d5 {[%emt 0:00:00]} 4. Nc3 {[%emt 0:00:01]} dxc4 {[%emt 0:00:01]} 5. e4 {[%emt 0:00:06]} Bb4 {[%emt 0:00:02]} 6. Bxc4 {[%emt 0:00:02]} Nxe4 {[%emt 0:00:01]} 7. O-O {[%emt 0:00:01]} Nf6 {[%emt 0:00:01]} 8. Qa4+ {[%emt 0:00:14]} Nc6 {[%emt 0:00:01]} 9. Ne5 {[%emt 0:00:14]} Bd6 {[%emt 0:00:02]} 10. Nxc6 {[%emt 0:00:08]} bxc6 {[%emt 0:00:00]} 11. Qxc6+ {[%emt 0:00:08]} Bd7 {[%emt 0:00:01]} 12. Qf3 {[%emt 0:00:01]} h6 {[%emt 0:00:00]} 13. Bf4 {[%emt 0:00:04]} Bxf4 {[%emt 0:00:00]} 14. Qxf4 {[%emt 0:00:02]} Bc6 {[%emt 0:00:01]} 15. Rfe1 {[%emt 0:00:23]} O-O {[%emt 0:00:01]} 16. Rad1 {[%emt 0:00:04]} Rb8 {[%emt 0:00:05]} 17. b3 {[%emt 0:00:02]} Qd7 {[%emt 0:00:06]} 18. Qe5 {[%emt 0:00:31]} Rfd8 {[%emt 0:00:12]} 19. Qa5 {[%emt 0:00:14]} Rb7 {[%emt 0:00:14]} 20. h3 {[%emt 0:00:48]} Qd6 {[%emt 0:00:17]} 21. Re5 {[%emt 0:00:26]} Nd7 {[%emt 0:00:22]} 22. Re3 {[%emt 0:00:13]} Nb6 {[%emt 0:00:12]} 23. Bf1 {[%emt 0:00:37]} Nd5 {[%emt 0:00:04]} 24. Nxd5 {[%emt 0:01:24]} Bxd5 {[%emt 0:00:00]} 25. Rc3 {[%emt 0:00:30]} c6 {[%emt 0:00:07]} 26. Bc4 {[%emt 0:00:47]} g5 {[%emt 0:00:57]} 27. Bxd5 {[%emt 0:00:04]} cxd5 {[%emt 0:00:03]} 28. Rdc1 {[%emt 0:00:02]} Qb6 {[%emt 0:00:39]} 29. Qa4 {[%emt 0:00:19]} Kg7 {[%emt 0:00:20]} 30. Rc8 {[%emt 0:00:23]} Rxc8 {[%emt 0:02:49]} 31. Rxc8 {[%emt 0:00:04]} Kg6 {[%emt 0:00:01]} 32. Rc6 {[%emt 0:02:06]} Qb4 {[%emt 0:00:18]} 33. Qa6 {[%emt 0:00:03]} Qe1+ {[%emt 0:01:25]} 34. Kh2 {[%emt 0:00:04]} Rb4 {[%emt 0:00:00]} 35. Qd3+ {[%emt 0:00:18]} Kg7 {[%emt 0:00:01]} 36. Qe3 {[%emt 0:00:18]} Qxe3 {[%emt 0:01:08]} 37. fxe3 {[%emt 0:00:00]} h5 {[%emt 0:00:00]} 38. Kg3 {[%emt 0:00:06]} Kg6 {[%emt 0:00:37]} 39. Kf3 {[%emt 0:00:01]} h4 {[%emt 0:00:02]} 40. Rc7 {[%emt 0:00:03]} a6 {[%emt 0:00:10]} 41. Rc6 {[%emt 0:00:02]} a5 {[%emt 0:00:02]} 42. Ra6 {[%emt 0:00:01]} Rb5 {[%emt 0:00:01]} 43. Ra7 {[%emt 0:00:02]} f6 {[%emt 0:00:04]} 44. e4 {[%emt 0:00:08]} dxe4+ {[%emt 0:00:10]} 45. Kxe4 {[%emt 0:00:00]} Rf5 {[%emt 0:00:05]} 46. Ke3 {[%emt 0:00:06]} Rd5 {[%emt 0:00:07]} 47. Ke4 {[%emt 0:00:08]} Rf5 {[%emt 0:00:29]} 48. Ke3 {[%emt 0:00:01]} Rb5 {[%emt 0:00:00]} 49. Ke4 {[%emt 0:00:05]} f5+ {[%emt 0:00:01]} 50. Ke3 {[%emt 0:00:02]} Kf6 {[%emt 0:00:02]} 51. Ra6 {[%emt 0:00:02]} Rd5 {[%emt 0:00:09]} 52. a4 {[%emt 0:00:04]} g4 {[%emt 0:00:02]} 53. Rb6 {[%emt 0:00:05]} Rd8 {[%emt 0:00:02]} 54. Rb5 {[%emt 0:00:06]} Rc8 {[%emt 0:00:02]} 55. hxg4 {[%emt 0:00:01]} fxg4 {[%emt 0:00:02]} 56. Kf4 {[%emt 0:00:00]} h3 {[%emt 0:00:01]} 57. gxh3 {[%emt 0:00:01]} gxh3 {[%emt 0:00:00]} 58. Rh5 {[%emt 0:00:01]} Rc3 {[%emt 0:00:05]} 59. Rh6+ {[%emt 0:00:02]} Ke7 {[%emt 0:00:01]} 60. Rh5 {[%emt 0:00:03]} Rxb3 {[%emt 0:00:04]} 61. Rxa5 {[%emt 0:00:01]} Kd6 {[%emt 0:00:02]} 62. Rh5 {[%emt 0:00:01]} Rd3 {[%emt 0:00:02]} 63. Ke4 {[%emt 0:00:01]} Ra3 {[%emt 0:00:02]} 64. a5 {[%emt 0:00:00]} h2 {[%emt 0:00:04]} 65. Rxh2 {[%emt 0:00:01]} Rxa5 {[%emt 0:00:01]} 1/2-1/2

[Event "CCT Julius Baer-D3 2024"]
[Site "Online"]
[Date "2024.09.27"]
[Round "1.2"]
[White "Yoo, Christopher"]
[Black "Deac, Bogdan-Daniel"]
[Result "1-0"]
[ECO "C58"]
[WhiteElo "2605"]
[BlackElo "2670"]
[Annotator "ChessBase"]
[PlyCount "159"]
[EventDate "2024.09.25"]
[EventType "swiss"]
[EventCountry "NET"]
[SourceTitle "playchess.com"]
[Source "ChessBase"]
[SourceQuality "1"]
[TimeControl "600+2"]

1. e4 {[%emt 0:00:02]} e5 {[%emt 0:00:03]} 2. Nf3 {[%emt 0:00:02]} Nc6 {[%emt 0:00:05]} 3. Bc4 {[%emt 0:00:03]} Nf6 {[%emt 0:00:03]} 4. Ng5 {[%emt 0:00:14]} d5 {[%emt 0:00:03]} 5. exd5 {[%emt 0:00:00]} Na5 {[%emt 0:00:02]} 6. Bb5+ {[%emt 0:00:01]} c6 {[%emt 0:00:01]} 7. dxc6 {[%emt 0:00:01]} bxc6 {[%emt 0:00:00]} 8. Bd3 {[%emt 0:00:01]} Nd5 {[%emt 0:00:01]} 9. h4 {[%emt 0:00:02]} Qc7 {[%emt 0:00:01]} 10. Nc3 {[%emt 0:00:17]} h6 {[%emt 0:00:03]} 11. Nf3 {[%emt 0:00:45]} Nf4 {[%emt 0:00:27]} 12. Bf1 {[%emt 0:00:09]} Ne6 {[%emt 0:02:12]} 13. d4 {[%emt 0:01:13]} exd4 {[%emt 0:00:30]} 14. Nxd4 {[%emt 0:00:02]} Bb4 {[%emt 0:00:00]} 15. a3 {[%emt 0:00:27]} Bxc3+ {[%emt 0:00:39]} 16. bxc3 {[%emt 0:00:02]} O-O {[%emt 0:00:00]} 17. Bd3 {[%emt 0:00:10]} Nf4 {[%emt 0:00:26]} 18. Bxf4 {[%emt 0:00:51]} Qxf4 {[%emt 0:00:03]} 19. Qf3 {[%emt 0:00:17]} Re8+ {[%emt 0:00:43]} 20. Kf1 {[%emt 0:00:06]} Qxf3 {[%emt 0:00:26]} 21. gxf3 {[%emt 0:00:05]} Rb8 {[%emt 0:00:54]} 22. Kg2 {[%emt 0:00:06]} c5 {[%emt 0:00:06]} 23. Rhe1 {[%emt 0:00:16]} Rd8 {[%emt 0:00:22]} 24. Re5 {[%emt 0:00:17]} cxd4 {[%emt 0:02:20]} 25. Rxa5 {[%emt 0:00:02]} dxc3 {[%emt 0:00:01]} 26. Rxa7 {[%emt 0:00:01]} Be6 {[%emt 0:00:06]} 27. Rc7 {[%emt 0:00:16]} Ra8 {[%emt 0:00:21]} 28. Rxc3 {[%emt 0:00:11]} Ra5 {[%emt 0:00:03]} 29. Rb1 {[%emt 0:00:58]} g5 {[%emt 0:00:15]} 30. Rh1 {[%emt 0:00:37]} Rda8 {[%emt 0:00:11]} 31. hxg5 {[%emt 0:00:03]} Rxg5+ {[%emt 0:00:31]} 32. Kf1 {[%emt 0:00:04]} h5 {[%emt 0:00:01]} 33. Rh4 {[%emt 0:00:27]} Rga5 {[%emt 0:00:02]} 34. a4 {[%emt 0:01:27]} Bd7 {[%emt 0:00:01]} 35. Rc7 {[%emt 0:00:02]} Bxa4 {[%emt 0:00:03]} 36. Rf4 {[%emt 0:00:05]} Rf8 {[%emt 0:00:04]} 37. Bc4 {[%emt 0:00:05]} Be8 {[%emt 0:00:01]} 38. Re7 {[%emt 0:00:08]} Kg7 {[%emt 0:00:02]} 39. Bd3 {[%emt 0:00:27]} Rc5 {[%emt 0:00:01]} 40. c4 {[%emt 0:00:08]} Rh8 {[%emt 0:00:02]} 41. Kg2 {[%emt 0:00:07]} h4 {[%emt 0:00:03]} 42. Kh3 {[%emt 0:00:09]} Kf8 {[%emt 0:00:01]} 43. Ra7 {[%emt 0:00:01]} Kg7 {[%emt 0:00:03]} 44. Rxh4 {[%emt 0:00:11]} Rxh4+ {[%emt 0:00:02]} 45. Kxh4 {[%emt 0:00:00]} Kf6 {[%emt 0:00:01]} 46. Kg3 {[%emt 0:00:01]} Ke6 {[%emt 0:00:03]} 47. Kf4 {[%emt 0:00:02]} f6 {[%emt 0:00:04]} 48. Ke3 {[%emt 0:00:04]} Rh5 {[%emt 0:00:02]} 49. f4 {[%emt 0:00:04]} Bc6 {[%emt 0:00:02]} 50. Ra6 {[%emt 0:00:12]} Kd7 {[%emt 0:00:01]} 51. Be4 {[%emt 0:00:02]} Bxe4 {[%emt 0:00:02]} 52. Kxe4 {[%emt 0:00:00]} Rc5 {[%emt 0:00:01]} 53. Ra4 {[%emt 0:00:04]} Ke6 {[%emt 0:00:03]} 54. f3 {[%emt 0:00:11]} Kd6 {[%emt 0:00:01]} 55. f5 {[%emt 0:00:08]} Re5+ {[%emt 0:00:02]} 56. Kf4 {[%emt 0:00:01]} Rc5 {[%emt 0:00:01]} 57. Ra6+ {[%emt 0:00:03]} Ke7 {[%emt 0:00:01]} 58. Re6+ {[%emt 0:00:01]} Kf7 {[%emt 0:00:04]} 59. Re4 {[%emt 0:00:01]} Kf8 {[%emt 0:00:01]} 60. Ke3 {[%emt 0:00:02]} Rxf5 {[%emt 0:00:02]} 61. f4 {[%emt 0:00:01]} Ra5 {[%emt 0:00:01]} 62. Kd4 {[%emt 0:00:00]} Kf7 {[%emt 0:00:05]} 63. c5 {[%emt 0:00:02]} f5 {[%emt 0:00:00]} 64. Re1 {[%emt 0:00:06]} Ra4+ {[%emt 0:00:03]} 65. Ke5 {[%emt 0:00:01]} Rc4 {[%emt 0:00:02]} 66. Kd5 {[%emt 0:00:06]} Rxf4 {[%emt 0:00:01]} 67. c6 {[%emt 0:00:01]} Rf2 {[%emt 0:00:05]} 68. Rc1 {[%emt 0:00:02]} Rd2+ {[%emt 0:00:01]} 69. Ke5 {[%emt 0:00:01]} Rd8 {[%emt 0:00:01]} 70. c7 {[%emt 0:00:00]} Rc8 {[%emt 0:00:00]} 71. Kd6 {[%emt 0:00:01]} Kf6 {[%emt 0:00:05]} 72. Rf1 {[%emt 0:00:01]} Kg5 {[%emt 0:00:02]} 73. Kd7 {[%emt 0:00:00]} Rh8 {[%emt 0:00:03]} 74. c8=Q {[%emt 0:00:01]} Rxc8 {[%emt 0:00:01]} 75. Kxc8 {[%emt 0:00:00]} f4 {[%emt 0:00:01]} 76. Kd7 {[%emt 0:00:00]} Kg4 {[%emt 0:00:01]} 77. Ke6 {[%emt 0:00:01]} f3 {[%emt 0:00:01]} 78. Ke5 {[%emt 0:00:00]} Kg3 {[%emt 0:00:03]} 79. Ke4 {[%emt 0:00:01]} f2 {[%emt 0:00:01]} 80. Ke3 {[%emt 0:00:00]} 1-0

[Event "CCT Julius Baer-D3 2024"]
[Site "Online"]
[Date "2024.09.27"]
[Round "1.2"]
[White "FGHSMN"]
[Black "Guseinov, Gadir"]
[Result "1-0"]
[ECO "B31"]
[WhiteElo "2602"]
[BlackElo "2623"]
[Annotator "ChessBase"]
[PlyCount "165"]
[EventDate "2024.09.25"]
[EventType "swiss"]
[EventCountry "NET"]
[SourceTitle "playchess.com"]
[Source "ChessBase"]
[SourceQuality "1"]
[TimeControl "600+2"]

1. e4 {[%emt 0:00:03]} c5 {[%emt 0:00:04]} 2. Nf3 {[%emt 0:00:01]} Nc6 {[%emt 0:00:01]} 3. Nc3 {[%emt 0:00:06]} g6 {[%emt 0:00:01]} 4. Bb5 {[%emt 0:00:03]} Nd4 {[%emt 0:00:03]} 5. Bc4 {[%emt 0:00:36]} Bg7 {[%emt 0:00:05]} 6. O-O {[%emt 0:00:01]} d6 {[%emt 0:00:03]} 7. d3 {[%emt 0:00:22]} Nf6 {[%emt 0:01:40]} 8. Nxd4 {[%emt 0:00:10]} cxd4 {[%emt 0:00:02]} 9. Ne2 {[%emt 0:00:09]} d5 {[%emt 0:00:01]} 10. Bb5+ {[%emt 0:00:33]} Bd7 {[%emt 0:00:01]} 11. Bxd7+ {[%emt 0:00:42]} Nxd7 {[%emt 0:00:01]} 12. Bg5 {[%emt 0:01:22]} dxe4 {[%emt 0:00:44]} 13. dxe4 {[%emt 0:00:00]} Nc5 {[%emt 0:00:01]} 14. Ng3 {[%emt 0:00:29]} Qb6 {[%emt 0:00:45]} 15. Rb1 {[%emt 0:00:33]} h6 {[%emt 0:00:20]} 16. Bd2 {[%emt 0:00:07]} h5 {[%emt 0:00:01]} 17. Re1 {[%emt 0:01:06]} h4 {[%emt 0:01:22]} 18. Nf1 {[%emt 0:00:01]} h3 {[%emt 0:00:01]} 19. g3 {[%emt 0:00:02]} Qc6 {[%emt 0:00:08]} 20. Bb4 {[%emt 0:00:33]} Ne6 {[%emt 0:01:57]} 21. Nd2 {[%emt 0:00:10]} a5 {[%emt 0:00:03]} 22. Ba3 {[%emt 0:00:04]} b5 {[%emt 0:00:00]} 23. b3 {[%emt 0:00:11]} Rc8 {[%emt 0:00:13]} 24. Qe2 {[%emt 0:00:32]} Bh6 {[%emt 0:00:54]} 25. Nf3 {[%emt 0:00:24]} O-O {[%emt 0:01:06]} 26. Bxe7 {[%emt 0:01:33]} Rfe8 {[%emt 0:00:03]} 27. Ba3 {[%emt 0:00:24]} Qxc2 {[%emt 0:00:13]} 28. Qxb5 {[%emt 0:00:02]} d3 {[%emt 0:00:00]} 29. Rb2 {[%emt 0:00:23]} Qc3 {[%emt 0:00:09]} 30. Rd1 {[%emt 0:00:03]} d2 {[%emt 0:00:12]} 31. Qe2 {[%emt 0:00:02]} Nd4 {[%emt 0:00:08]} 32. Nxd4 {[%emt 0:00:02]} Qxd4 {[%emt 0:00:00]} 33. Qg4 {[%emt 0:00:05]} Rc1 {[%emt 0:00:19]} 34. Rbxd2 {[%emt 0:00:05]} Rxd1+ {[%emt 0:00:25]} 35. Rxd1 {[%emt 0:00:00]} Qxe4 {[%emt 0:00:03]} 36. Qxh3 {[%emt 0:00:01]} Bg7 {[%emt 0:00:01]} 37. Qf1 {[%emt 0:00:04]} Qc2 {[%emt 0:00:02]} 38. Bd6 {[%emt 0:00:05]} Qxa2 {[%emt 0:00:04]} 39. Qb5 {[%emt 0:00:00]} Re2 {[%emt 0:00:02]} 40. Rf1 {[%emt 0:00:03]} Bd4 {[%emt 0:00:02]} 41. Bc5 {[%emt 0:00:04]} Bxc5 {[%emt 0:00:02]} 42. Qxc5 {[%emt 0:00:00]} Qxb3 {[%emt 0:00:00]} 43. Qxa5 {[%emt 0:00:02]} Qe6 {[%emt 0:00:01]} 44. Qc5 {[%emt 0:00:01]} Re5 {[%emt 0:00:01]} 45. Qd4 {[%emt 0:00:01]} Re4 {[%emt 0:00:00]} 46. Qd3 {[%emt 0:00:01]} Re5 {[%emt 0:00:01]} 47. h4 {[%emt 0:00:01]} Kg7 {[%emt 0:00:01]} 48. Qc3 {[%emt 0:00:01]} Kh7 {[%emt 0:00:02]} 49. Ra1 {[%emt 0:00:01]} Qf6 {[%emt 0:00:02]} 50. Rc1 {[%emt 0:00:05]} Rf5 {[%emt 0:00:01]} 51. Qd2 {[%emt 0:00:02]} Qe6 {[%emt 0:00:03]} 52. Re1 {[%emt 0:00:02]} Re5 {[%emt 0:00:01]} 53. Rxe5 {[%emt 0:00:02]} Qxe5 {[%emt 0:00:00]} 54. Qe3 {[%emt 0:00:01]} Qa1+ {[%emt 0:00:03]} 55. Kg2 {[%emt 0:00:01]} Qa8+ {[%emt 0:00:01]} 56. Qf3 {[%emt 0:00:00]} Qa2 {[%emt 0:00:01]} 57. Qf4 {[%emt 0:00:02]} Qd5+ {[%emt 0:00:01]} 58. Kh2 {[%emt 0:00:01]} Qa2 {[%emt 0:00:01]} 59. g4 {[%emt 0:00:01]} Qd5 {[%emt 0:00:02]} 60. Kg3 {[%emt 0:00:00]} Kg8 {[%emt 0:00:02]} 61. Qb8+ {[%emt 0:00:07]} Kh7 {[%emt 0:00:01]} 62. Qf4 {[%emt 0:00:01]} Kg8 {[%emt 0:00:01]} 63. Qe3 {[%emt 0:00:01]} Qd1 {[%emt 0:00:02]} 64. f4 {[%emt 0:00:01]} Kh7 {[%emt 0:00:04]} 65. Qf3 {[%emt 0:00:03]} Qg1+ {[%emt 0:00:02]} 66. Kh3 {[%emt 0:00:01]} Kg8 {[%emt 0:00:03]} 67. Qa8+ {[%emt 0:00:05]} Kh7 {[%emt 0:00:02]} 68. Qf3 {[%emt 0:00:01]} Kg8 {[%emt 0:00:01]} 69. f5 {[%emt 0:00:02]} gxf5 {[%emt 0:00:02]} 70. gxf5 {[%emt 0:00:00]} Qc1 {[%emt 0:00:13]} 71. Qg4+ {[%emt 0:00:01]} Kf8 {[%emt 0:00:01]} 72. Qb4+ {[%emt 0:00:02]} Kg8 {[%emt 0:00:02]} 73. Qg4+ {[%emt 0:00:03]} Kf8 {[%emt 0:00:01]} 74. Qe4 {[%emt 0:00:05]} Qf1+ {[%emt 0:00:02]} 75. Kg4 {[%emt 0:00:00]} Qd1+ {[%emt 0:00:02]} 76. Qf3 {[%emt 0:00:01]} Qd4+ {[%emt 0:00:02]} 77. Qf4 {[%emt 0:00:00]} Qg7+ {[%emt 0:00:02]} 78. Qg5 {[%emt 0:00:02]} Qa1 {[%emt 0:00:02]} 79. Kh5 {[%emt 0:00:04]} Ke8 {[%emt 0:00:03]} 80. f6 {[%emt 0:00:01]} Qa2 {[%emt 0:00:03]} 81. Kh6 {[%emt 0:00:02]} Qe6 {[%emt 0:00:02]} 82. h5 {[%emt 0:00:00]} Kd7 {[%emt 0:00:01]} 83. Kg7 {[%emt 0:00:01]} 1-0

[Event "CCT Julius Baer-D3 2024"]
[Site "Online"]
[Date "2024.09.27"]
[Round "1.2"]
[White "Predke, Alexandr"]
[Black "Gelfand, Boris"]
[Result "1/2-1/2"]
[ECO "B30"]
[WhiteElo "2584"]
[BlackElo "2651"]
[Annotator "ChessBase"]
[PlyCount "76"]
[EventDate "2024.09.25"]
[EventType "swiss"]
[EventCountry "NET"]
[SourceTitle "playchess.com"]
[Source "ChessBase"]
[SourceQuality "1"]
[TimeControl "600+2"]

1. e4 {[%emt 0:00:02]} c5 {[%emt 0:00:04]} 2. Nf3 {[%emt 0:00:01]} Nc6 {[%emt 0:00:00]} 3. Bb5 {[%emt 0:00:02]} e6 {[%emt 0:00:01]} 4. Bxc6 {[%emt 0:00:01]} bxc6 {[%emt 0:00:02]} 5. d3 {[%emt 0:00:06]} Ne7 {[%emt 0:00:01]} 6. e5 {[%emt 0:00:05]} f6 {[%emt 0:00:22]} 7. Nh4 {[%emt 0:00:11]} fxe5 {[%emt 0:02:03]} 8. Qh5+ {[%emt 0:00:33]} g6 {[%emt 0:00:02]} 9. Qxe5 {[%emt 0:00:01]} Rg8 {[%emt 0:00:01]} 10. O-O {[%emt 0:01:05]} Nd5 {[%emt 0:01:15]} 11. Bg5 {[%emt 0:01:07]} Bg7 {[%emt 0:01:07]} 12. Qxg7 {[%emt 0:00:07]} Rxg7 {[%emt 0:00:01]} 13. Bxd8 {[%emt 0:00:01]} Kxd8 {[%emt 0:00:01]} 14. Nd2 {[%emt 0:00:09]} d6 {[%emt 0:00:10]} 15. Ne4 {[%emt 0:00:02]} Kc7 {[%emt 0:00:01]} 16. f4 {[%emt 0:00:10]} Bd7 {[%emt 0:00:23]} 17. Rf2 {[%emt 0:00:17]} Rf8 {[%emt 0:00:17]} 18. g3 {[%emt 0:00:13]} h6 {[%emt 0:00:18]} 19. Re1 {[%emt 0:00:15]} Bc8 {[%emt 0:00:30]} 20. b3 {[%emt 0:00:36]} Ne7 {[%emt 0:00:19]} 21. Nf3 {[%emt 0:00:25]} Nf5 {[%emt 0:00:07]} 22. c4 {[%emt 0:00:43]} Bd7 {[%emt 0:00:33]} 23. Kg2 {[%emt 0:00:07]} Rgf7 {[%emt 0:00:08]} 24. h3 {[%emt 0:00:24]} a5 {[%emt 0:00:03]} 25. h4 {[%emt 0:01:22]} Bc8 {[%emt 0:00:12]} 26. Nc3 {[%emt 0:00:28]} Nd4 {[%emt 0:00:18]} 27. Ne4 {[%emt 0:00:08]} Nxf3 {[%emt 0:00:41]} 28. Rxf3 {[%emt 0:00:03]} e5 {[%emt 0:00:01]} 29. Ref1 {[%emt 0:00:11]} exf4 {[%emt 0:00:03]} 30. Rxf4 {[%emt 0:00:06]} Rxf4 {[%emt 0:00:02]} 31. Rxf4 {[%emt 0:00:00]} Rxf4 {[%emt 0:00:02]} 32. gxf4 {[%emt 0:00:00]} Bf5 {[%emt 0:00:01]} 33. Kf3 {[%emt 0:00:04]} Kd7 {[%emt 0:00:21]} 34. Ke3 {[%emt 0:00:01]} Ke6 {[%emt 0:00:01]} 35. Nd2 {[%emt 0:00:44]} Bg4 {[%emt 0:00:03]} 36. Ne4 {[%emt 0:00:13]} Bf5 {[%emt 0:00:02]} 37. Nd2 {[%emt 0:00:46]} Bg4 {[%emt 0:00:01]} 38. Ne4 {[%emt 0:00:01]} Bf5 {[%emt 0:00:02]} 1/2-1/2

[Event "CCT Julius Baer-D3 2024"]
[Site "Online"]
[Date "2024.09.27"]
[Round "1.2"]
[White "Ponkratov, Pavel"]
[Black "Korobov, Anton"]
[Result "0-1"]
[ECO "B90"]
[WhiteElo "2564"]
[BlackElo "2650"]
[Annotator "ChessBase"]
[PlyCount "78"]
[EventDate "2024.09.25"]
[EventType "swiss"]
[EventCountry "NET"]
[SourceTitle "playchess.com"]
[Source "ChessBase"]
[SourceQuality "1"]
[TimeControl "600+2"]

1. e4 {[%emt 0:00:03]} c5 {[%emt 0:00:04]} 2. Nf3 {[%emt 0:00:01]} d6 {[%emt 0:00:01]} 3. d4 {[%emt 0:00:02]} cxd4 {[%emt 0:00:00]} 4. Nxd4 {[%emt 0:00:00]} Nf6 {[%emt 0:00:01]} 5. Nc3 {[%emt 0:00:01]} a6 {[%emt 0:00:01]} 6. Be3 {[%emt 0:00:09]} e5 {[%emt 0:00:07]} 7. Nf3 {[%emt 0:00:02]} Qc7 {[%emt 0:00:01]} 8. a4 {[%emt 0:00:06]} Be7 {[%emt 0:00:35]} 9. Be2 {[%emt 0:00:10]} h6 {[%emt 0:00:04]} 10. O-O {[%emt 0:00:12]} Be6 {[%emt 0:00:10]} 11. a5 {[%emt 0:00:02]} Nbd7 {[%emt 0:02:03]} 12. Nh4 {[%emt 0:01:36]} g6 {[%emt 0:00:27]} 13. Nf3 {[%emt 0:00:06]} Qc6 {[%emt 0:00:25]} 14. Nd2 {[%emt 0:00:51]} Rc8 {[%emt 0:00:10]} 15. Bf3 {[%emt 0:00:08]} g5 {[%emt 0:00:44]} 16. Re1 {[%emt 0:00:36]} g4 {[%emt 0:00:12]} 17. Be2 {[%emt 0:00:02]} h5 {[%emt 0:00:07]} 18. Bd3 {[%emt 0:00:08]} Nc5 {[%emt 0:00:13]} 19. Bg5 {[%emt 0:00:40]} h4 {[%emt 0:00:40]} 20. Bxf6 {[%emt 0:00:11]} Bxf6 {[%emt 0:00:03]} 21. Nd5 {[%emt 0:00:01]} Bg5 {[%emt 0:00:26]} 22. Nb6 {[%emt 0:00:17]} Rd8 {[%emt 0:00:28]} 23. b4 {[%emt 0:00:57]} Nxd3 {[%emt 0:00:07]} 24. cxd3 {[%emt 0:00:03]} Qc3 {[%emt 0:00:10]} 25. Ndc4 {[%emt 0:00:52]} g3 {[%emt 0:00:23]} 26. Qf3 {[%emt 0:00:34]} gxf2+ {[%emt 0:00:11]} 27. Qxf2 {[%emt 0:00:06]} h3 {[%emt 0:00:13]} 28. Nd5 {[%emt 0:00:57]} Qxd3 {[%emt 0:00:17]} 29. Nce3 {[%emt 0:01:01]} Rc8 {[%emt 0:00:39]} 30. Rad1 {[%emt 0:00:06]} Qxe4 {[%emt 0:00:11]} 31. g3 {[%emt 0:00:43]} Rh6 {[%emt 0:00:43]} 32. Rf1 {[%emt 0:00:07]} Bxe3 {[%emt 0:00:26]} 33. Nxe3 {[%emt 0:00:01]} Rc3 {[%emt 0:00:02]} 34. Rfe1 {[%emt 0:00:01]} Rf6 {[%emt 0:00:17]} 35. Qxf6 {[%emt 0:00:03]} Rxe3 {[%emt 0:00:01]} 36. Qh8+ {[%emt 0:00:06]} Kd7 {[%emt 0:00:11]} 37. Rxd6+ {[%emt 0:00:05]} Kxd6 {[%emt 0:00:00]} 38. Qd8+ {[%emt 0:00:03]} Bd7 {[%emt 0:00:01]} 39. Qb8+ {[%emt 0:00:07]} Ke7 {[%emt 0:00:03]} 0-1